fUSD/lending_fUSD_20250828
["ID","MTS","AMOUNT","RATE_DAILY","PERIOD"]
[381820027,1756359049815,-402.84754,0.00018247,2]
[381820028,1756359049824,-402.84754,0.00018247,2]
[381820029,1756359049833,-402.84754,0.00018247,2]
[381820030,1756359049843,-402.84754,0.00018247,2]
[381820031,1756359049852,-402.84754,0.00018247,2]
[381820032,1756359049862,-402.84754,0.00018247,2]
[381820033,1756359049872,-402.84754,0.00018247,2]
[381820034,1756359049882,-402.84754,0.00018247,2]
[381820035,1756359049892,-402.847539,0.00018247,2]
[381820036,1756359049902,-400.0,0.00018272,2]
[381820037,1756359049912,-400.0,0.00018272,2]
[381820038,1756359049922,-400.0,0.00018272,2]
[381820039,1756359049932,-400.0,0.00018272,2]
[381820040,1756359049941,-197.73,0.00018272,2]
[381820041,1756359049951,-400.0,0.00018272,2]
[381820042,1756359049960,-281.45,0.00018272,2]
[381820043,1756359049970,-400.0,0.00018272,2]
[381820044,1756359049981,-152.31,0.00018272,2]
[381820045,1756359049991,-368.65,0.00018272,2]
[381820046,1756359050000,-156.18,0.00018272,2]
[381820047,1756359050010,-355.27,0.00018272,2]
[381820048,1756359050019,-400.0,0.00018272,2]
[381820049,1756359050029,-400.0,0.00018272,2]
[381820050,1756359050038,-313.49,0.00018272,2]
[381820051,1756359050048,-400.0,0.00018272,2]
[381820052,1756359050059,-268.01,0.00018272,2]
[381820053,1756359050068,-232.84,0.00018272,2]
[381820054,1756359050077,-317.61,0.00018272,2]
[381820055,1756359050087,-170.5,0.00018272,2]
[381820056,1756359050096,-377.79,0.00018272,2]
[381820057,1756359050105,-294.05,0.00018272,2]
[381820058,1756359050115,-278.83,0.00018272,2]
[381820059,1756359050124,-298.9,0.00018272,2]
[381820060,1756359050134,-212.91,0.00018272,2]
[381820061,1756359050145,-324.77,0.00018272,2]
[381820062,1756359050155,-417.81,0.00018272,2]
[381820063,1756359050164,-265.22,0.00018272,2]
[381820064,1756359050174,-400.0,0.00018272,2]
[381820065,1756359050184,-482.34,0.00018272,2]
[381820066,1756359050193,-400.0,0.00018272,2]
[381820067,1756359050203,-400.0,0.00018272,2]
[381820068,1756359050212,-349.3,0.00018272,2]
[381820069,1756359050222,-400.0,0.00018272,2]
[381820070,1756359050231,-241.72,0.00018272,2]
[381820071,1756359050241,-242.57,0.00018272,2]
[381820072,1756359050251,-294.05,0.00018272,2]
[381820073,1756359050260,-215.51,0.00018272,2]
[381820074,1756359050269,-400.0,0.00018272,2]
[381820075,1756359050279,-400.0,0.00018272,2]
[381820076,1756359050288,-178.17,0.00018272,2]
[381820077,1756359050298,-400.0,0.00018272,2]
[381820078,1756359050307,-448.43,0.00018272,2]
[381820079,1756359050317,-235.42,0.00018272,2]
[381820080,1756359050326,-158.67,0.00018272,2]
[381820081,1756359050335,-400.0,0.00018272,2]
[381820082,1756359050345,-400.0,0.00018272,2]
[381820083,1756359050354,-400.0,0.00018272,2]
[381820084,1756359050364,-385.83,0.00018272,2]
[381820085,1756359050373,-400.0,0.00018272,2]
[381820086,1756359050382,-210.73,0.00018272,2]
[381820087,1756359050392,-411.09,0.00018272,2]
[381820088,1756359050402,-400.0,0.00018272,2]
[381820089,1756359050412,-400.0,0.00018272,2]
[381820090,1756359050421,-493.97403808,0.00018272,2]
[381820091,1756359050431,-400.0,0.00018272,2]
[381820092,1756359050440,-400.0,0.00018272,2]
[381820093,1756359050450,-400.0,0.00018272,2]
[381820094,1756359050459,-298.91,0.00018272,2]
[381820095,1756359050469,-260.33,0.00018272,2]
[381820096,1756359050478,-164.47,0.00018272,2]
[381820097,1756359050490,-183.58,0.00018272,2]
[381820098,1756359050500,-420.73,0.00018272,2]
[381820099,1756359050509,-364.28,0.00018272,2]
[381820100,1756359050518,-163.20982842,0.00018272,2]
[381820101,1756359050528,-364.69,0.00018272,2]
[381820102,1756359050538,-400.0,0.00018272,2]
[381820103,1756359050547,-324.35722296,0.00018272,2]
[381820104,1756359050556,-400.0,0.00018272,2]
[381820105,1756359050566,-400.0,0.00018272,2]
[381820106,1756359050576,-400.0,0.00018272,2]
[381820107,1756359050585,-302.22,0.00018272,2]
[381820109,1756359050594,-415.91,0.00018272,2]
[381820111,1756359050605,-352.25,0.00018272,2]
[381820112,1756359050614,-227.11,0.00018272,2]
[381820113,1756359050623,-255.13,0.00018272,2]
[381820114,1756359050632,-286.01,0.00018272,2]
[381820115,1756359050642,-216.31,0.00018272,2]
[381820116,1756359050653,-400.0,0.00018272,2]
[381820117,1756359050663,-230.3,0.00018272,2]
[381820118,1756359050672,-217.5,0.00018272,2]
[381820119,1756359050949,-281.47,0.00018272,2]
[381820120,1756359050959,-400.0,0.00018272,2]
[381820121,1756359050969,-400.0,0.00018272,2]
[381820122,1756359050981,-372.35,0.00018272,2]
[381820123,1756359050991,-323.42,0.00018272,2]
[381820124,1756359051001,-454.77,0.00018272,2]
[381820125,1756359051010,-382.75,0.00018272,2]
[381820126,1756359051021,-400.0,0.00018272,2]
[381820127,1756359051030,-486.48,0.00018272,2]
[381820128,1756359051040,-400.0,0.00018272,2]
[381820129,1756359051051,-164.67,0.00018272,2]
[381820130,1756359051060,-400.0,0.00018272,2]
[381820131,1756359051070,-357.83,0.00018272,2]
[381820132,1756359051079,-400.0,0.00018272,2]
[381820133,1756359051089,-400.0,0.00018272,2]
[381820134,1756359051099,-400.0,0.00018272,2]
[381820135,1756359051108,-241.5,0.00018272,2]
[381820136,1756359051118,-476.33,0.00018272,2]
[381820137,1756359051128,-265.79,0.00018272,2]
[381820138,1756359051137,-400.0,0.00018272,2]
[381820139,1756359051147,-400.0,0.00018272,2]
[381820140,1756359051157,-400.0,0.00018272,2]
[381820141,1756359051167,-198.97,0.00018272,2]
[381820142,1756359051176,-475.07,0.00018272,2]
[381820143,1756359051186,-323.87,0.00018272,2]
[381820144,1756359051195,-400.0,0.00018272,2]
[381820145,1756359051205,-194.24,0.00018272,2]
[381820146,1756359051215,-400.0,0.00018272,2]
[381820147,1756359051224,-400.0,0.00018272,2]
[381820148,1756359051234,-400.0,0.00018272,2]
[381820149,1756359051244,-400.0,0.00018272,2]
[381820150,1756359051253,-249.14,0.00018272,2]
[381820151,1756359051263,-227.21,0.00018272,2]
[381820152,1756359051272,-400.0,0.00018272,2]
[381820153,1756359051282,-400.0,0.00018272,2]
[381820154,1756359051292,-400.0,0.00018272,2]
[381820155,1756359051302,-400.0,0.00018272,2]
[381820156,1756359051311,-400.0,0.00018272,2]
[381820157,1756359051320,-400.0,0.00018272,2]
[381820158,1756359051330,-400.0,0.00018272,2]
[381820159,1756359051339,-1717.97,0.00018272,2]
[381820160,1756359051348,-400.0,0.00018272,2]
[381820161,1756359051358,-400.0,0.00018272,2]
[381820162,1756359051367,-400.0,0.00018272,2]
[381820163,1756359051381,-400.0,0.00018272,2]
[381820164,1756359051391,-400.0,0.00018272,2]
[381820165,1756359051401,-400.0,0.00018272,2]
[381820166,1756359051410,-400.0,0.00018272,2]
[381820167,1756359051419,-400.0,0.00018272,2]
[381820168,1756359051429,-400.0,0.00018272,2]
[381820169,1756359051438,-400.0,0.00018272,2]
[381820170,1756359051447,-400.0,0.00018272,2]
[381820171,1756359051457,-400.0,0.00018272,2]
[381820172,1756359051466,-400.0,0.00018272,2]
[381820173,1756359051475,-373.78,0.00018272,2]
[381820174,1756359051485,-400.0,0.00018272,2]
[381820175,1756359051494,-400.0,0.00018272,2]
[381820176,1756359051506,-400.0,0.00018272,2]
[381820177,1756359051515,-400.0,0.00018272,2]
[381820178,1756359051524,-400.0,0.00018272,2]
[381820179,1756359051534,-400.0,0.00018272,2]
[381820180,1756359051543,-310.67,0.00018272,2]
[381820181,1756359051553,-540.48,0.00018272,2]
[381820182,1756359051563,-400.0,0.00018272,2]
[381820183,1756359051572,-400.0,0.00018272,2]
[381820184,1756359051582,-400.0,0.00018272,2]
[381820185,1756359051591,-400.0,0.00018272,2]
[381820186,1756359051602,-489.12,0.00018272,2]
[381820187,1756359051611,-155.93,0.00018272,2]
[381820188,1756359051623,-449.54516179,0.00018272,2]
[381820189,1756359051633,-256.73,0.00018272,2]
[381820190,1756359051643,-400.0,0.00018272,2]
[381820191,1756359051654,-400.0,0.00018272,2]
[381820192,1756359051663,-400.0,0.00018272,2]
[381820193,1756359051673,-400.0,0.00018272,2]
[381820194,1756359051683,-165.23,0.00018272,2]
[381820195,1756359051692,-400.0,0.00018272,2]
[381820196,1756359051702,-543.07,0.00018272,2]
[381820197,1756359051711,-400.0,0.00018272,2]
[381820198,1756359051721,-400.0,0.00018272,2]
[381820199,1756359051731,-400.0,0.00018272,2]
[381820200,1756359051740,-1453.82,0.00018272,2]
[381820201,1756359051750,-323.61873661,0.00018272,2]
[381820202,1756359051760,-400.0,0.00018272,2]
[381820203,1756359051769,-400.0,0.00018272,2]
[381820204,1756359051779,-400.0,0.00018272,2]
[381820205,1756359051788,-400.0,0.00018272,2]
[381820206,1756359051797,-448.75,0.00018272,2]
[381820207,1756359051807,-399.71626016,0.00018272,2]
[381820208,1756359051817,-336.39,0.00018272,2]
[381820209,1756359051827,-286.28,0.00018272,2]
[381820210,1756359051836,-400.0,0.00018272,2]
[381820211,1756359051846,-400.0,0.00018272,2]
[381820212,1756359051855,-400.0,0.00018272,2]
[381820213,1756359051864,-400.0,0.00018272,2]
[381820214,1756359051874,-367.7,0.00018272,2]
[381820215,1756359051883,-289.08,0.00018272,2]
[381820216,1756359051893,-211.45,0.00018272,2]
[381820217,1756359051903,-484.55,0.00018272,2]
[381820218,1756359051912,-400.0,0.00018272,2]
[381820219,1756359051921,-400.0,0.00018272,2]
[381820220,1756359051931,-400.0,0.00018272,2]
[381820221,1756359051941,-339.03,0.00018272,2]
[381820222,1756359051950,-400.0,0.00018272,2]
[381820223,1756359051960,-408.39,0.00018272,2]
[381820224,1756359051969,-225.92,0.00018272,2]
[381820225,1756359051980,-294.14,0.00018272,2]
[381820226,1756359051990,-400.0,0.00018272,2]
[381820227,1756359052000,-400.0,0.00018272,2]
[381820228,1756359052010,-400.0,0.00018272,2]
[381820229,1756359052019,-401.1,0.00018272,2]
[381820230,1756359052030,-400.0,0.00018272,2]
[381820231,1756359052040,-207.63,0.00018272,2]
[381820232,1756359052049,-269.1,0.00018272,2]
[381820233,1756359052060,-200.44,0.00018272,2]
[381820234,1756359052070,-400.0,0.00018272,2]
[381820235,1756359052079,-303.92,0.00018272,2]
[381820236,1756359052088,-473.21,0.00018272,2]
[381820237,1756359052104,-394.01,0.00018272,2]
[381820238,1756359052113,-400.0,0.00018272,2]
[381820239,1756359052123,-433.87,0.00018272,2]
[381820240,1756359052132,-258.04,0.00018272,2]
[381820241,1756359052142,-400.0,0.00018272,2]
[381820242,1756359052153,-344.1,0.00018272,2]
[381820243,1756359052162,-400.0,0.00018272,2]
[381820244,1756359052171,-400.0,0.00018272,2]
[381820245,1756359052181,-270.91655193,0.00018272,2]
[381820246,1756359052190,-475.73,0.00018272,2]
[381820247,1756359052200,-400.0,0.00018272,2]
[381820248,1756359052209,-400.0,0.00018272,2]
[381820249,1756359052219,-355.25,0.00018272,2]
[381820250,1756359052228,-376.3,0.00018272,2]
[381820251,1756359052238,-184.4856332,0.00018272,2]
[381820252,1756359052247,-554.12,0.00018272,2]
[381820253,1756359052260,-166.6,0.00018272,2]
[381820254,1756359052277,-400.0,0.00018272,2]
[381820255,1756359052295,-305.44104577,0.00018272,2]
[381820256,1756359052308,-400.0,0.00018272,2]
[381820257,1756359052317,-400.0,0.00018272,2]
[381820258,1756359052326,-329.09,0.00018272,2]
[381820259,1756359052336,-162.6,0.00018272,2]
[381820260,1756359052346,-400.0,0.00018272,2]
[381820261,1756359052355,-400.0,0.00018272,2]
[381820262,1756359052365,-345.29,0.00018272,2]
[381820263,1756359052374,-400.0,0.00018272,2]
[381820264,1756359052383,-400.0,0.00018272,2]
[381820265,1756359052393,-187.15,0.00018272,2]
[381820266,1756359052403,-422.10634105,0.00018272,2]
[381820267,1756359052413,-400.0,0.00018272,2]
[381820268,1756359052422,-400.0,0.00018272,2]
[381820269,1756359052431,-336.21436436,0.00018272,2]
[381820270,1756359052440,-400.0,0.00018272,2]
[381820271,1756359052450,-404.83063401,0.00018272,2]
[381820272,1756359052459,-310.69,0.00018272,2]
[381820273,1756359052468,-434.01681314,0.00018272,2]
[381820274,1756359052478,-400.0,0.00018272,2]
[381820275,1756359052487,-334.98,0.00018272,2]
[381820276,1756359052496,-400.0,0.00018272,2]
[381820277,1756359052505,-400.0,0.00018272,2]
[381820278,1756359052514,-400.0,0.00018272,2]
[381820279,1756359052523,-253.14928132,0.00018272,2]
[381820280,1756359052533,-229.25,0.00018272,2]
[381820281,1756359052542,-400.0,0.00018272,2]
[381820282,1756359052551,-268.22,0.00018272,2]
[381820283,1756359052561,-425.35,0.00018272,2]
[381820284,1756359052570,-425.03,0.00018272,2]
[381820285,1756359052579,-607.2,0.00018272,2]
[381820286,1756359052588,-408.84,0.00018272,2]
[381820287,1756359052598,-400.0,0.00018272,2]
[381820288,1756359052608,-400.0,0.00018272,2]
[381820289,1756359052617,-442.57,0.00018272,2]
[381820290,1756359052626,-400.0,0.00018272,2]
[381820291,1756359052635,-400.0,0.00018272,2]
[381820292,1756359052644,-400.0,0.00018272,2]
[381820293,1756359052657,-209.39,0.00018272,2]
[381820294,1756359052667,-400.0,0.00018272,2]
[381820295,1756359052676,-298.74,0.00018272,2]
[381820296,1756359052685,-400.0,0.00018272,2]
[381820297,1756359052694,-1048.72,0.00018272,2]
[381820298,1756359052704,-409.62,0.00018272,2]
[381820299,1756359052713,-400.0,0.00018272,2]
[381820300,1756359052723,-400.0,0.00018272,2]
[381820301,1756359052733,-158.67,0.00018272,2]
[381820302,1756359052743,-322.08,0.00018272,2]
[381820303,1756359052752,-425.7,0.00018272,2]
[381820304,1756359052762,-282.34982565,0.00018272,2]
[381820305,1756359052771,-214.6762447,0.00018272,2]
[381820306,1756359052780,-400.0,0.00018272,2]
[381820307,1756359052789,-856.33,0.00018272,2]
[381820308,1756359052799,-440.3,0.00018272,2]
[381820309,1756359052808,-400.0,0.00018272,2]
[381820310,1756359052817,-615.0,0.00018272,2]
[381820311,1756359052826,-539.47740631,0.00018272,2]
[381820312,1756359052836,-400.0,0.00018272,2]
[381820313,1756359052845,-400.0,0.00018272,2]
[381820314,1756359052854,-400.0,0.00018272,2]
[381820315,1756359052863,-400.0,0.00018272,2]
[381820316,1756359052873,-400.0,0.00018272,2]
[381820317,1756359052882,-419.44,0.00018272,2]
[381820318,1756359052891,-400.0,0.00018272,2]
[381820319,1756359052900,-400.0,0.00018272,2]
[381820320,1756359052910,-400.0,0.00018272,2]
[381820321,1756359052919,-366.2,0.00018272,2]
[381820322,1756359052929,-400.0,0.00018272,2]
[381820323,1756359052939,-489.33,0.00018272,2]
[381820324,1756359052949,-400.0,0.00018272,2]
[381820325,1756359052959,-365.63267671,0.00018272,2]
[381820326,1756359052968,-430.37,0.00018272,2]
[381820327,1756359052979,-400.0,0.00018272,2]
[381820328,1756359052990,-429.84,0.00018272,2]
[381820329,1756359053000,-400.0,0.00018272,2]
[381820330,1756359053010,-258.87812343,0.00018272,2]
[381820331,1756359053021,-400.0,0.00018272,2]
[381820332,1756359053031,-412.7,0.00018272,2]
[381820333,1756359053040,-400.0,0.00018272,2]
[381820334,1756359053050,-192.40761221,0.00018272,2]
[381820335,1756359053060,-235.40227952,0.00018272,2]
[381820336,1756359053069,-400.0,0.00018272,2]
[381820337,1756359053078,-323.88670591,0.00018272,2]
[381820338,1756359053088,-349.37,0.00018272,2]
[381820339,1756359053098,-347.57,0.00018272,2]
[381820340,1756359053107,-400.0,0.00018272,2]
[381820341,1756359053116,-400.0,0.00018272,2]
[381820342,1756359053126,-315.24,0.00018272,2]
[381820343,1756359053136,-409.55,0.00018272,2]
[381820344,1756359053145,-272.94,0.00018272,2]
[381820345,1756359053156,-400.0,0.00018272,2]
[381820346,1756359053167,-554.38,0.00018272,2]
[381820347,1756359053176,-466.59,0.00018272,2]
[381820348,1756359053186,-150.8913009,0.00018272,2]
[381820349,1756359053195,-453.0,0.00018272,2]
[381820350,1756359053205,-518.74,0.00018272,2]
[381820351,1756359053214,-400.0,0.00018272,2]
[381820352,1756359053223,-500.86,0.00018272,2]
[381820353,1756359053232,-378.49,0.00018272,2]
[381820354,1756359053241,-399.24,0.00018272,2]
[381820355,1756359053251,-449.33,0.00018272,2]
[381820356,1756359053260,-406.64,0.00018272,2]
[381820357,1756359053269,-400.0,0.00018272,2]
[381820358,1756359053278,-400.0,0.00018272,2]
[381820359,1756359053288,-297.07,0.00018272,2]
[381820360,1756359053297,-400.0,0.00018272,2]
[381820361,1756359053362,-222.58,0.00018272,2]
[381820362,1756359053371,-537.98,0.00018272,2]
[381820363,1756359053380,-400.0,0.00018272,2]
[381820364,1756359053390,-347.83,0.00018272,2]
[381820365,1756359053399,-430.56,0.00018272,2]
[381820366,1756359053409,-400.0,0.00018272,2]
[381820367,1756359053419,-400.0,0.00018272,2]
[381820368,1756359053427,-264.31,0.00018272,2]
[381820369,1756359053437,-440.02,0.00018272,2]
[381820370,1756359053446,-400.0,0.00018272,2]
[381820371,1756359053455,-400.0,0.00018272,2]
[381820372,1756359053464,-249.29,0.00018272,2]
[381820373,1756359053473,-321.88,0.00018272,2]
[381820374,1756359053483,-400.0,0.00018272,2]
[381820375,1756359053492,-439.16,0.00018272,2]
[381820376,1756359053501,-400.0,0.00018272,2]
[381820377,1756359053510,-400.0,0.00018272,2]
[381820378,1756359053519,-448.53,0.00018272,2]
[381820379,1756359053528,-496.76,0.00018272,2]
[381820380,1756359053537,-246.74,0.00018272,2]
[381820381,1756359053546,-537.7,0.00018272,2]
[381820382,1756359053556,-400.0,0.00018272,2]
[381820383,1756359053565,-384.16,0.00018272,2]
[381820384,1756359053574,-521.83,0.00018272,2]
[381820385,1756359053583,-400.0,0.00018272,2]
[381820386,1756359053593,-349.49311647,0.00018272,2]
[381820387,1756359053603,-400.0,0.00018272,2]
[381820388,1756359053612,-584.93,0.00018272,2]
[381820389,1756359053622,-400.0,0.00018272,2]
[381820390,1756359053631,-293.74,0.00018272,2]
[381820391,1756359053640,-329.3,0.00018272,2]
[381820392,1756359053651,-400.0,0.00018272,2]
[381820393,1756359053661,-527.88,0.00018272,2]
[381820394,1756359053670,-400.0,0.00018272,2]
[381820395,1756359053679,-213.38,0.00018272,2]
[381820396,1756359053688,-527.10658101,0.00018272,2]
[381820397,1756359053698,-1318.25,0.00018272,2]
[381820398,1756359053706,-400.0,0.00018272,2]
[381820399,1756359053715,-302.43444728,0.00018272,2]
[381820400,1756359053724,-512.81,0.00018272,2]
[381820401,1756359053734,-549.47711908,0.00018272,2]
[381820402,1756359053743,-400.0,0.00018272,2]
[381820403,1756359053752,-321.84,0.00018272,2]
[381820404,1756359053762,-400.0,0.00018272,2]
[381820405,1756359053771,-316.92,0.00018272,2]
[381820406,1756359053780,-691.02,0.00018272,2]
[381820407,1756359053790,-510.91,0.00018272,2]
[381820408,1756359053799,-300.0,0.00018272,2]
[381820409,1756359053808,-500.0,0.00018273,2]
[381820410,1756359053817,-500.0,0.00018273,2]
[381820411,1756359053827,-500.0,0.00018273,2]
[381820412,1756359053836,-500.0,0.00018273,2]
[381820413,1756359053845,-323.90237999,0.00018273,2]
[381820414,1756359053854,-501.10794781,0.00018273,2]
[381820415,1756359053864,-500.0,0.00018273,2]
[381820416,1756359053873,-500.0,0.00018273,2]
[381820417,1756359053882,-500.0,0.00018273,2]
[381820418,1756359053890,-500.0,0.00018273,2]
[381820419,1756359053901,-400.0,0.00018273,2]
[381820420,1756359053911,-400.0,0.00018273,2]
[381820421,1756359053920,-400.0,0.00018273,2]
[381820422,1756359053929,-450.76398552,0.00018273,2]
[381820423,1756359053938,-400.0,0.00018273,2]
[381820424,1756359053947,-350.71,0.00018273,2]
[381820425,1756359053957,-358.97869209,0.00018273,2]
[381820426,1756359053967,-235.95,0.00018273,2]
[381820427,1756359053976,-400.0,0.00018273,2]
[381820428,1756359053987,-382.55,0.00018273,2]
[381820429,1756359053997,-473.84,0.00018273,2]
[381820430,1756359054006,-299.05,0.00018273,2]
[381820431,1756359054016,-400.0,0.00018273,2]
[381820432,1756359054027,-253.47,0.00018273,2]
[381820433,1756359054036,-400.0,0.00018273,2]
[381820434,1756359054045,-389.93,0.00018273,2]
[381820435,1756359054058,-371.50104335,0.00018273,2]
[381820436,1756359054067,-270.92276836,0.00018273,2]
[381820437,1756359054076,-470.8,0.00018273,2]
[381820438,1756359054086,-400.0,0.00018273,2]
[381820439,1756359054095,-203.97,0.00018273,2]
[381820440,1756359054104,-400.0,0.00018273,2]
[381820441,1756359054113,-493.58,0.00018273,2]
[381820442,1756359054123,-400.0,0.00018273,2]
[381820443,1756359054133,-313.28,0.00018273,2]
[381820444,1756359054143,-408.79808191,0.00018273,2]
[381820445,1756359054152,-400.0,0.00018273,2]
[381820446,1756359054162,-219.00838652,0.00018273,2]
[381820447,1756359054171,-400.0,0.00018273,2]
[381820448,1756359054180,-229.06,0.00018273,2]
[381820449,1756359054190,-400.0,0.00018273,2]
[381820450,1756359054199,-400.0,0.00018273,2]
[381820451,1756359054209,-400.0,0.00018273,2]
[381820452,1756359054219,-400.0,0.00018273,2]
[381820453,1756359054228,-400.0,0.00018273,2]
[381820454,1756359054239,-400.0,0.00018273,2]
[381820455,1756359054250,-400.0,0.00018273,2]
[381820456,1756359054259,-401.26,0.00018273,2]
[381820457,1756359054268,-307.29,0.00018273,2]
[381820458,1756359054278,-219.85,0.00018273,2]
[381820459,1756359054290,-356.11374395,0.00018273,2]
[381820460,1756359054300,-400.0,0.00018273,2]
[381820461,1756359054310,-400.0,0.00018273,2]
[381820462,1756359054319,-400.0,0.00018273,2]
[381820463,1756359054329,-400.0,0.00018273,2]
[381820464,1756359054340,-500.48,0.00018273,2]
[381820465,1756359054350,-545.81,0.00018273,2]
[381820466,1756359054359,-633.46,0.00018273,2]
[381820467,1756359054369,-400.0,0.00018273,2]
[381820468,1756359054379,-400.0,0.00018273,2]
[381820469,1756359054390,-299.68565161,0.00018273,2]
[381820470,1756359054401,-1042.04,0.00018273,2]
[381820471,1756359054410,-400.0,0.00018273,2]
[381820472,1756359054419,-400.0,0.00018273,2]
[381820473,1756359054429,-400.0,0.00018273,2]
[381820474,1756359054439,-225.27618735,0.00018273,2]
[381820475,1756359054448,-400.0,0.00018273,2]
[381820476,1756359054458,-400.0,0.00018273,2]
[381820477,1756359054467,-400.0,0.00018273,2]
[381820478,1756359054476,-400.0,0.00018273,2]
[381820479,1756359054487,-4735.76,0.00018273,2]
[381820480,1756359054497,-287.25899759,0.00018273,2]
[381820481,1756359054506,-400.0,0.00018273,2]
[381820482,1756359054515,-400.0,0.00018273,2]
[381820483,1756359054524,-2496.66,0.00018273,2]
[381820484,1756359054533,-400.0,0.00018273,2]
[381820485,1756359054542,-400.0,0.00018273,2]
[381820486,1756359054552,-400.0,0.00018273,2]
[381820487,1756359054562,-400.0,0.00018273,2]
[381820488,1756359054571,-353.70733909,0.00018273,2]
[381820489,1756359054581,-400.0,0.00018273,2]
[381820490,1756359054591,-460.44,0.00018273,2]
[381820491,1756359054601,-400.0,0.00018273,2]
[381820492,1756359054613,-329.3,0.00018273,2]
[381820493,1756359054624,-400.0,0.00018273,2]
[381820494,1756359054634,-400.0,0.00018273,2]
[381820495,1756359054644,-400.0,0.00018273,2]
[381820496,1756359054655,-400.0,0.00018273,2]
[381820497,1756359054665,-400.0,0.00018273,2]
[381820498,1756359054674,-244.16294658,0.00018273,2]
[381820499,1756359054684,-400.0,0.00018273,2]
[381820500,1756359054694,-400.0,0.00018273,2]
[381820501,1756359054703,-225.79423266,0.00018273,2]
[381820502,1756359054713,-400.0,0.00018273,2]
[381820503,1756359054722,-400.0,0.00018273,2]
[381820504,1756359054731,-400.0,0.00018273,2]
[381820505,1756359054741,-400.0,0.00018273,2]
[381820506,1756359054750,-400.0,0.00018273,2]
[381820507,1756359054759,-400.0,0.00018273,2]
[381820508,1756359054768,-388.17893972,0.00018273,2]
[381820509,1756359054787,-400.0,0.00018273,2]
[381820510,1756359054796,-400.0,0.00018273,2]
[381820511,1756359054806,-400.0,0.00018273,2]
[381820512,1756359054815,-400.0,0.00018273,2]
[381820513,1756359054824,-419.34,0.00018273,2]
[381820514,1756359054834,-400.0,0.00018273,2]
[381820515,1756359054844,-400.0,0.00018273,2]
[381820516,1756359054853,-480.35912699,0.00018273,2]
[381820517,1756359054862,-400.0,0.00018273,2]
[381820518,1756359054872,-400.0,0.00018273,2]
[381820519,1756359054881,-400.0,0.00018273,2]
[381820520,1756359054891,-1748.86,0.00018273,2]
[381820521,1756359054900,-400.0,0.00018273,2]
[381820522,1756359054910,-400.0,0.00018273,2]
[381820523,1756359054919,-400.0,0.00018273,2]
[381820524,1756359054930,-400.0,0.00018273,2]
[381820525,1756359054941,-400.0,0.00018273,2]
[381820526,1756359054950,-400.0,0.00018273,2]
[381820527,1756359054960,-400.0,0.00018273,2]
[381820528,1756359054969,-400.0,0.00018273,2]